fUSD/lending_fUSD_20241030
["ID","MTS","AMOUNT","RATE_DAILY","PERIOD"]
[341044073,1730301077023,-2500.57425989,0.00037278,2]
[341044074,1730301077032,-241.70333334,0.00037279,2]
[341044075,1730301077042,-2451.07378629,0.00037282,2]
[341044076,1730301077051,-200.0,0.00037282,2]
[341044077,1730301077060,-200.0,0.00037284,2]
[341044078,1730301077069,-111376.70981103,0.00037287,2]
[341044079,1730301077079,-2500.57425989,0.00037288,2]
[341044080,1730301077087,-200.0,0.00037289,2]
[341044081,1730301077096,-1152.50540372,0.00037289,2]
[341044082,1730301077105,-200.0,0.00037295,2]
[341044083,1730301077114,-570.58842797,0.00037297,2]
[341044084,1730301077123,-50499.55747003,0.000373,30]
[341044085,1730301077132,-111376.70981103,0.000373,2]
[341044086,1730301077141,-200.0,0.00037301,2]
[341044087,1730301077150,-377.88336841,0.00037301,2]
[341044088,1730301077159,-278.07800688,0.00037304,2]
[341044089,1730301077169,-200.0,0.00037304,2]
[341044090,1730301077177,-19776.13072721,0.00037304,2]
[341044091,1730301077187,-2451.07378629,0.00037304,2]
[341044092,1730301077196,-334.68307787,0.00037307,2]
[341044093,1730301077206,-1017.07185611,0.00037308,2]
[341044094,1730301077220,-278.07800688,0.00037309,2]
[341044095,1730301077229,-278.07800688,0.00037309,2]
[341044096,1730301077239,-527874.9773425,0.0003731,2]
[341044097,1730301077248,-399.47869136,0.0003731,2]
[341044098,1730301077258,-1399.00519925,0.0003731,2]
[341044099,1730301077267,-19776.13072721,0.0003731,2]
[341044100,1730301077276,-200.0,0.0003731,2]
[341044101,1730301077286,-19776.13072721,0.00037311,2]
[341044102,1730301077296,-570.58842797,0.00037312,2]
[341044103,1730301077305,-294.73487756,0.00037314,2]
[341044104,1730301077314,-1399.00519925,0.00037315,2]
[341044105,1730301077324,-12540.5150816,0.00037316,2]
[341044106,1730301077333,-2451.07378629,0.00037317,2]
[341044107,1730301077344,-1819.80869474,0.00037319,2]
[341044108,1730301077353,-252.54156309,0.00037319,2]
[341044109,1730301077362,-1819.80869474,0.00037319,2]
[341044110,1730301077371,-527874.9773425,0.0003732,2]
[341044111,1730301077380,-294.73487756,0.00037323,2]
[341044112,1730301077391,-272.59421502,0.00037324,2]
[341044113,1730301077401,-200.0,0.00037327,2]
[341044114,1730301077412,-17851.03035477,0.00037328,2]
[341044115,1730301077423,-1433.72618751,0.0003733,2]
[341044116,1730301077433,-1819.80869474,0.00037332,2]
[341044117,1730301077443,-278.07800688,0.00037334,2]
[341044118,1730301077453,-12540.5150816,0.00037334,2]
[341044119,1730301077462,-1152.50540372,0.00037335,2]
[341044120,1730301077472,-294.73487756,0.00037336,2]
[341044121,1730301077481,-1152.50540372,0.00037336,2]
[341044122,1730301077491,-1433.72618751,0.00037336,2]
[341044123,1730301077501,-241.70333334,0.00037337,2]
[341044124,1730301077510,-272.59421502,0.00037337,2]
[341044125,1730301077520,-17851.03035477,0.00037338,2]
[341044126,1730301077529,-334.68307787,0.00037338,2]
[341044127,1730301077540,-570.58842797,0.00037339,2]
[341044128,1730301077550,-527874.9773425,0.0003734,2]
[341044129,1730301077560,-1819.80869474,0.0003734,2]
[341044130,1730301077570,-294.73487756,0.00037341,2]
[341044131,1730301077580,-215.75802827,0.00037342,2]
[341044132,1730301077589,-399.47869136,0.00037344,2]
[341044133,1730301077598,-200.0,0.00037346,2]
[341044134,1730301077608,-17851.03035477,0.00037346,2]
[341044135,1730301077617,-200.0,0.00037346,2]
[341044136,1730301077626,-2500.57425989,0.00037347,2]
[341044137,1730301077635,-1152.50540372,0.00037348,2]
[341044138,1730301077645,-200.0,0.00037351,2]
[341044139,1730301077655,-272.59421502,0.00037355,2]
[341044140,1730301077664,-1152.50540372,0.00037356,2]
[341044141,1730301077674,-3722.133794,0.00037358,2]
[341044142,1730301077684,-17851.03035477,0.00037361,2]
[341044143,1730301077693,-377.88336841,0.00037361,2]
[341044144,1730301077704,-200.0,0.00037362,2]
[341044145,1730301077713,-215.75802827,0.00037363,2]
[341044146,1730301077723,-1017.07185611,0.00037365,2]
[341044147,1730301077732,-294.73487756,0.00037365,2]
[341044148,1730301077741,-377.88336841,0.00037366,2]
[341044149,1730301077751,-200.0,0.00037368,2]
[341044150,1730301077760,-2500.57425989,0.00037368,2]
[341044151,1730301077770,-200.0,0.0003737,2]
[341044152,1730301077779,-241.70333334,0.00037371,2]
[341044153,1730301077788,-1835.68206104,0.00037371,2]
[341044154,1730301077798,-377.88336841,0.00037372,2]
[341044155,1730301077807,-377.88336841,0.00037372,2]
[341044156,1730301077816,-202.68916057,0.00037373,4]
[341044157,1730301077826,-19776.13072721,0.00037374,2]
[341044158,1730301077835,-1399.00519925,0.00037377,2]
[341044159,1730301077845,-527874.9773425,0.00037377,2]
[341044160,1730301077854,-12540.5150816,0.00037378,2]
[341044161,1730301077863,-3722.133794,0.00037379,2]
[341044162,1730301077873,-252.54156309,0.00037379,2]
[341044163,1730301077882,-200.0,0.00037383,2]
[341044164,1730301077892,-200.0,0.00037384,2]
[341044165,1730301077901,-1835.68206104,0.00037384,2]
[341044166,1730301077911,-278.07800688,0.00037385,2]
[341044167,1730301077923,-294.73487756,0.00037389,2]
[341044168,1730301077934,-1399.00519925,0.0003739,2]
[341044169,1730301077944,-200.0,0.00037392,2]
[341044170,1730301077954,-278.07800688,0.00037392,2]
[341044171,1730301077964,-12540.5150816,0.00037394,2]
[341044172,1730301077973,-200.0,0.00037395,2]
[341044173,1730301077982,-252.54156309,0.00037398,2]
[341044174,1730301077991,-5194.21017781,0.000374,2]
[341044175,1730301078002,-4000.0,0.00037499,6]
[341044176,1730301078011,-397.0,0.000375,23]
[341044177,1730301078020,-323.314397,0.000375,22]
[341044178,1730301078029,-150.0,0.000375,26]
[341044179,1730301078039,-1011.06,0.000375,22]
[341044180,1730301078048,-542.0,0.00037534,5]
[341044181,1730301078058,-500.0,0.00037534,5]
[341044182,1730301078067,-399.51418535,0.00037534,5]
[341044183,1730301078076,-1139.26,0.00037534,2]
[341044184,1730301078086,-600.73,0.00037534,5]
[341044185,1730301078095,-879.74,0.00037534,5]
[341044186,1730301078104,-834.42,0.00037534,5]
[341044187,1730301078250,-500.0,0.00037534,5]
[341044188,1730301078261,-500.0,0.00037534,5]
[341044189,1730301078271,-500.0,0.00037534,5]
[341044190,1730301078280,-493.29085179,0.00037534,5]
[341044191,1730301078290,-541.52,0.00037534,5]
[341044192,1730301078300,-646.69,0.00037534,5]
[341044193,1730301078310,-599.58,0.00037534,5]
[341044194,1730301078321,-739.01,0.00037534,5]
[341044195,1730301078332,-644.7,0.00037534,5]
[341044196,1730301078341,-1000.0,0.00037534,120]
[341044197,1730301078350,-610.76,0.00037534,5]
[341044198,1730301078360,-478.57275885,0.00037534,5]
[341044199,1730301078370,-500.0,0.00037534,5]
[341044200,1730301078380,-1213.36,0.00037534,5]
[341044201,1730301078390,-500.0,0.00037534,5]
[341044202,1730301078401,-741.71,0.00037534,5]
[341044203,1730301078411,-500.0,0.00037534,5]
[341044204,1730301078420,-791.34,0.00037534,5]
[341044205,1730301078430,-2165.19,0.00037534,5]
[341044206,1730301078440,-2507.94,0.00037534,5]
[341044207,1730301078449,-500.0,0.00037534,5]
[341044208,1730301078461,-556.27,0.00037534,5]
[341044209,1730301078471,-850.73,0.00037534,5]
[341044210,1730301078480,-500.0,0.00037534,5]
[341044211,1730301078490,-500.0,0.00037534,5]
[341044212,1730301078500,-500.0,0.00037534,5]
[341044213,1730301078510,-594.99,0.00037534,5]
[341044214,1730301078519,-638.53,0.00037534,5]
[341044215,1730301078530,-765.24,0.00037534,5]
[341044216,1730301078539,-500.0,0.00037534,5]
[341044217,1730301078548,-872.19,0.00037534,5]
[341044218,1730301078558,-726.09,0.00037534,5]
[341044219,1730301078568,-1312.35,0.00037534,5]
[341044220,1730301078578,-1481.81,0.00037534,5]
[341044221,1730301078588,-662.44,0.00037534,5]
[341044222,1730301078597,-500.0,0.00037534,5]
[341044223,1730301078606,-500.0,0.00037534,5]
[341044224,1730301078615,-646.17,0.00037534,5]
[341044225,1730301078625,-679.04,0.00037534,5]
[341044226,1730301078634,-925.77,0.00037534,5]
[341044227,1730301078643,-854.36,0.00037534,5]
[341044228,1730301078653,-500.0,0.00037534,5]
[341044229,1730301078663,-524.7,0.00037534,5]
[341044230,1730301078672,-1022.86,0.00037534,5]
[341044231,1730301078682,-725.7,0.00037534,5]
[341044232,1730301078691,-500.0,0.00037534,5]
[341044233,1730301078700,-500.0,0.00037534,5]
[341044234,1730301078714,-1018.14,0.00037534,5]
[341044235,1730301078723,-823.86,0.00037534,5]
[341044236,1730301078733,-1098.19,0.00037534,5]
[341044237,1730301078742,-574.74,0.00037534,5]
[341044238,1730301078751,-1711.21,0.00037534,120]
[341044239,1730301078761,-179.5550392,0.00037534,5]
[341044240,1730301078771,-546.7,0.00037534,5]
[341044241,1730301078781,-500.0,0.00037534,5]
[341044242,1730301078790,-500.0,0.00037534,5]
[341044243,1730301078799,-500.0,0.00037534,5]
[341044244,1730301078809,-636.4,0.00037534,5]
[341044245,1730301078818,-500.0,0.00037534,5]
[341044246,1730301078828,-1397.76,0.00037534,5]
[341044247,1730301078837,-540.06,0.00037534,5]
[341044248,1730301078847,-601.3,0.00037534,5]
[341044249,1730301078857,-701.17,0.00037534,5]
[341044250,1730301078866,-724.57,0.00037534,5]
[341044251,1730301078876,-1140.97,0.00037534,5]
[341044252,1730301078886,-1327.32,0.00037534,5]
[341044253,1730301078896,-794.59,0.00037534,5]
[341044254,1730301078906,-500.0,0.00037534,5]
[341044255,1730301078915,-650.16,0.00037534,5]
[341044256,1730301078925,-508.69,0.00037534,5]
[341044257,1730301078934,-553.9,0.00037534,5]
[341044258,1730301078944,-979.14,0.00037534,5]
[341044259,1730301078959,-500.0,0.00037534,5]
[341044260,1730301078969,-604.38,0.00037534,30]
[341044261,1730301078978,-1224.33,0.00037534,5]
[341044262,1730301078987,-231.81664067,0.00037534,5]
[341044263,1730301078997,-902.67,0.00037534,5]
[341044264,1730301079008,-636.730403,0.00037534,5]
[341044265,1730301079018,-778.22,0.00037534,5]
[341044266,1730301079027,-500.0,0.00037534,5]
[341044267,1730301079038,-500.0,0.00037534,5]
[341044268,1730301079049,-500.0,0.00037534,5]
[341044269,1730301079059,-500.0,0.00037534,5]
[341044270,1730301079068,-1335.04,0.00037534,5]
[341044271,1730301079079,-546.12,0.00037534,5]
[341044272,1730301079089,-813.76,0.00037534,5]
[341044273,1730301079099,-500.0,0.00037534,5]
[341044274,1730301079109,-581.37,0.00037534,5]
[341044275,1730301079118,-500.0,0.00037534,5]
[341044276,1730301079127,-601.11,0.00037534,5]
[341044277,1730301079137,-500.0,0.00037534,5]
[341044278,1730301079146,-500.0,0.00037534,5]
[341044279,1730301079155,-500.0,0.00037534,5]
[341044280,1730301079165,-500.0,0.00037534,5]
[341044281,1730301079175,-3900.02,0.00037534,5]
[341044282,1730301079185,-500.0,0.00037534,5]
[341044283,1730301079195,-3956.8,0.00037534,5]
[341044284,1730301079211,-1033.49,0.00037534,5]
[341044285,1730301079226,-2561.17,0.00037534,5]
[341044286,1730301079235,-5020.91,0.00037534,5]
[341044287,1730301079245,-1504.38,0.00037534,5]
[341044288,1730301079255,-156.35065037,0.0003762,2]
[341044289,1730301079265,-178.58,0.00037626,2]
[341044290,1730301079275,-7103.18,0.00037671,120]
[341044291,1730301079285,-600.0,0.0003768,20]
[341044292,1730301079295,-2000.0,0.0003773,7]
[341044293,1730301079304,-165.63607396,0.000378,2]
[341044294,1730301079314,-432.88,0.000378,30]
[341044295,1730301079324,-182.45,0.000378,31]
[341044296,1730301079334,-182.45,0.000378,31]
[341044297,1730301079344,-182.45,0.000378,31]
[341044298,1730301079355,-182.45,0.000378,31]
[341044299,1730301079364,-182.45,0.000378,31]
[341044300,1730301079374,-182.45,0.000378,31]
[341044301,1730301079384,-182.45,0.000378,31]
[341044302,1730301079394,-182.45,0.000378,31]
[341044303,1730301079404,-182.45,0.000378,31]
[341044304,1730301079414,-182.45,0.000378,31]
[341044305,1730301079424,-182.45,0.000378,31]
[341044306,1730301079434,-182.45,0.000378,31]
[341044307,1730301079443,-542.0,0.00037808,5]
[341044308,1730301079458,-500.0,0.00037808,5]
[341044309,1730301079467,-1139.26,0.00037808,2]
[341044310,1730301079478,-600.73,0.00037808,5]
[341044311,1730301079488,-879.74,0.00037808,5]
[341044312,1730301079497,-834.42,0.00037808,5]
[341044313,1730301079506,-500.0,0.00037808,5]
[341044314,1730301079516,-500.0,0.00037808,5]
[341044315,1730301079529,-500.0,0.00037808,5]
[341044316,1730301079540,-541.52,0.00037808,5]
[341044317,1730301079550,-646.69,0.00037808,5]
[341044318,1730301079560,-599.58,0.00037808,5]
[341044319,1730301079570,-739.01,0.00037808,5]
[341044320,1730301079580,-644.7,0.00037808,5]
[341044321,1730301079590,-1000.0,0.00037808,120]
[341044322,1730301079600,-610.76,0.00037808,5]
[341044323,1730301079609,-500.0,0.00037808,5]
[341044324,1730301079619,-1213.36,0.00037808,5]
[341044325,1730301079629,-468.49095491,0.00037808,5]
[341044326,1730301079639,-741.71,0.00037808,5]
[341044327,1730301079651,-519.49860738,0.00037808,5]
[341044328,1730301079662,-791.34,0.00037808,5]
[341044329,1730301079671,-2165.19,0.00037808,5]
[341044330,1730301079681,-2507.94,0.00037808,5]
[341044331,1730301079691,-500.0,0.00037808,5]
[341044332,1730301079701,-556.27,0.00037808,5]
[341044333,1730301079712,-850.73,0.00037808,5]
[341044334,1730301079722,-615.23669392,0.00037808,5]
[341044335,1730301079732,-531.97604377,0.00037808,5]
[341044336,1730301079742,-500.0,0.00037808,5]
[341044337,1730301079751,-594.99,0.00037808,5]
[341044338,1730301079760,-638.53,0.00037808,5]
[341044339,1730301079770,-765.24,0.00037808,5]
[341044340,1730301079779,-274.62955806,0.00037808,5]
[341044341,1730301079788,-872.19,0.00037808,5]
[341044342,1730301079798,-726.09,0.00037808,5]
[341044343,1730301079807,-1312.35,0.00037808,5]
[341044344,1730301079817,-1481.81,0.00037808,5]
[341044345,1730301079827,-662.44,0.00037808,5]
[341044346,1730301079836,-500.0,0.00037808,5]
[341044347,1730301079846,-500.0,0.00037808,5]
[341044348,1730301079856,-646.17,0.00037808,5]
[341044349,1730301079865,-679.04,0.00037808,5]
[341044350,1730301079875,-925.77,0.00037808,5]
[341044351,1730301079884,-854.36,0.00037808,5]
[341044352,1730301079893,-500.0,0.00037808,5]
[341044353,1730301079903,-524.7,0.00037808,5]
[341044354,1730301079914,-1022.86,0.00037808,5]
[341044355,1730301079924,-725.7,0.00037808,5]
[341044356,1730301079935,-500.0,0.00037808,5]
[341044357,1730301079944,-500.0,0.00037808,5]
[341044358,1730301079956,-1018.14,0.00037808,5]
[341044359,1730301079965,-823.86,0.00037808,5]
[341044360,1730301079974,-1098.19,0.00037808,5]
[341044361,1730301079983,-574.74,0.00037808,5]
[341044362,1730301079992,-1711.21,0.00037808,120]
[341044363,1730301080002,-546.7,0.00037808,5]
[341044364,1730301080012,-500.0,0.00037808,5]
[341044365,1730301080023,-500.0,0.00037808,5]
[341044366,1730301080034,-500.0,0.00037808,5]
[341044367,1730301080045,-636.4,0.00037808,5]
[341044368,1730301080055,-500.0,0.00037808,5]
[341044369,1730301080065,-1397.76,0.00037808,5]
[341044370,1730301080074,-540.06,0.00037808,5]
[341044371,1730301080085,-601.3,0.00037808,5]
[341044372,1730301080094,-701.17,0.00037808,5]
[341044373,1730301080104,-724.57,0.00037808,5]
[341044374,1730301080115,-1140.97,0.00037808,5]
[341044375,1730301080125,-1327.32,0.00037808,5]
[341044376,1730301080135,-794.59,0.00037808,5]
[341044377,1730301080145,-500.0,0.00037808,5]
[341044378,1730301080158,-650.16,0.00037808,5]
[341044379,1730301080167,-508.69,0.00037808,5]
[341044380,1730301080176,-553.9,0.00037808,5]
[341044381,1730301080186,-979.14,0.00037808,5]
[341044382,1730301080197,-500.0,0.00037808,5]
[341044383,1730301080211,-604.38,0.00037808,30]
[341044384,1730301080223,-1224.33,0.00037808,5]
[341044385,1730301080232,-902.67,0.00037808,5]
[341044386,1730301080241,-778.22,0.00037808,5]
[341044387,1730301080251,-500.0,0.00037808,5]
[341044388,1730301080261,-500.0,0.00037808,5]
[341044389,1730301080270,-500.0,0.00037808,5]
[341044390,1730301080279,-500.0,0.00037808,5]
[341044391,1730301080289,-1335.04,0.00037808,5]
[341044392,1730301080298,-546.12,0.00037808,5]
[341044393,1730301080311,-813.76,0.00037808,5]
[341044394,1730301080322,-500.0,0.00037808,5]
[341044395,1730301080331,-581.37,0.00037808,5]
[341044396,1730301080341,-500.0,0.00037808,5]
[341044397,1730301080350,-601.11,0.00037808,5]
[341044398,1730301080359,-500.0,0.00037808,5]
[341044399,1730301080368,-500.0,0.00037808,5]
[341044400,1730301080378,-500.0,0.00037808,5]
[341044401,1730301080387,-500.0,0.00037808,5]
[341044402,1730301080397,-3900.02,0.00037808,5]
[341044403,1730301080407,-500.0,0.00037808,5]
[341044404,1730301080416,-3956.8,0.00037808,5]
[341044405,1730301080425,-1033.49,0.00037808,5]
[341044406,1730301080435,-2561.17,0.00037808,5]
[341044407,1730301080445,-5020.91,0.00037808,5]
[341044408,1730301080456,-1504.38,0.00037808,5]
[341044409,1730301080467,-26093.0534621,0.000379,2]
[341044410,1730301080476,-900.0,0.00038,39]
[341044411,1730301080485,-9893.21197083,0.00038,4]
[341044412,1730301080495,-500.0,0.00038,120]
[341044413,1730301080504,-1476.0,0.00038,24]
[341044414,1730301080514,-150.0,0.00038,27]
[341044415,1730301080524,-397.0,0.00038,24]
[341044416,1730301080534,-215.81475698,0.00038,7]
[341044417,1730301080543,-303.0,0.00038,24]
[341044418,1730301080553,-12000.0,0.00038066,8]
[341044419,1730301080562,-542.0,0.00038082,5]
[341044420,1730301080572,-805.74,0.00038082,2]
[341044421,1730301080582,-500.0,0.00038082,5]
[341044422,1730301080591,-1139.26,0.00038082,2]
[341044423,1730301080601,-600.73,0.00038082,5]
[341044424,1730301080610,-879.74,0.00038082,5]
[341044425,1730301080619,-834.42,0.00038082,5]
[341044426,1730301080629,-500.0,0.00038082,5]
[341044427,1730301080639,-500.0,0.00038082,5]
[341044428,1730301080648,-500.0,0.00038082,5]
[341044429,1730301080658,-541.52,0.00038082,5]
[341044430,1730301080668,-646.69,0.00038082,5]
[341044431,1730301080677,-599.58,0.00038082,5]
[341044432,1730301080686,-739.01,0.00038082,5]
[341044433,1730301080695,-644.7,0.00038082,5]
[341044434,1730301080707,-1000.0,0.00038082,120]
[341044435,1730301080716,-610.76,0.00038082,5]
[341044436,1730301080726,-383.2559592,0.00038082,5]
[341044437,1730301080735,-1213.36,0.00038082,5]
[341044438,1730301080745,-741.71,0.00038082,5]
[341044439,1730301080754,-791.34,0.00038082,5]
[341044440,1730301080763,-2165.19,0.00038082,5]
[341044441,1730301080773,-2507.94,0.00038082,5]
[341044442,1730301080782,-500.0,0.00038082,5]
[341044443,1730301080791,-556.27,0.00038082,5]
[341044444,1730301080800,-850.73,0.00038082,5]
[341044445,1730301080810,-500.0,0.00038082,5]
[341044446,1730301080819,-594.99,0.00038082,5]
[341044447,1730301080828,-638.53,0.00038082,5]
[341044448,1730301080838,-765.24,0.00038082,5]
[341044449,1730301080847,-872.19,0.00038082,5]
[341044450,1730301080856,-726.09,0.00038082,5]
[341044451,1730301080866,-1312.35,0.00038082,5]
[341044452,1730301080875,-1481.81,0.00038082,5]
[341044453,1730301080884,-662.44,0.00038082,5]
[341044454,1730301080893,-166.6888029,0.00038082,5]
[341044455,1730301080903,-500.0,0.00038082,5]
[341044456,1730301080912,-646.17,0.00038082,5]
[341044457,1730301080921,-679.04,0.00038082,5]
[341044458,1730301080931,-925.77,0.00038082,5]
[341044459,1730301080940,-854.36,0.00038082,5]
[341044460,1730301080950,-286.65120937,0.00038082,5]
[341044461,1730301080962,-524.7,0.00038082,5]
[341044462,1730301080973,-1022.86,0.00038082,5]
[341044463,1730301080993,-725.7,0.00038082,5]
[341044464,1730301081003,-576.79809639,0.00038082,5]
[341044465,1730301081012,-500.0,0.00038082,5]
[341044466,1730301081021,-1018.14,0.00038082,5]
[341044467,1730301081031,-823.86,0.00038082,5]
[341044468,1730301081040,-1098.19,0.00038082,5]
[341044469,1730301081050,-574.74,0.00038082,5]
[341044470,1730301081059,-1711.21,0.00038082,120]
[341044471,1730301081069,-546.7,0.00038082,5]
[341044472,1730301081079,-500.0,0.00038082,5]
[341044473,1730301081088,-502.78736647,0.00038082,5]
[341044474,1730301081098,-500.0,0.00038082,5]
[341044475,1730301081109,-636.4,0.00038082,5]
[341044476,1730301081121,-411.25205818,0.00038082,5]
[341044477,1730301081130,-1397.76,0.00038082,5]
[341044478,1730301081140,-540.06,0.00038082,5]
[341044479,1730301081151,-601.3,0.00038082,5]
[341044480,1730301081160,-701.17,0.00038082,5]
[341044481,1730301081169,-724.57,0.00038082,5]
[341044482,1730301081179,-1140.97,0.00038082,5]
[341044483,1730301081188,-1327.32,0.00038082,5]
[341044484,1730301081197,-794.59,0.00038082,5]
[341044485,1730301081210,-500.0,0.00038082,5]
[341044486,1730301081223,-650.16,0.00038082,5]
[341044487,1730301081233,-508.69,0.00038082,5]
[341044488,1730301081243,-553.9,0.00038082,5]
[341044489,1730301081252,-979.14,0.00038082,5]
[341044490,1730301081262,-500.0,0.00038082,5]
[341044491,1730301081272,-604.38,0.00038082,30]
[341044492,1730301081281,-1224.33,0.00038082,5]
[341044493,1730301081290,-902.67,0.00038082,5]
[341044494,1730301081300,-778.22,0.00038082,5]
[341044495,1730301081312,-500.0,0.00038082,5]
[341044496,1730301081321,-372.71437198,0.00038082,5]
[341044497,1730301081464,-500.0,0.00038082,5]
[341044498,1730301081474,-500.0,0.00038082,5]
[341044499,1730301081484,-1335.04,0.00038082,5]
[341044500,1730301081493,-546.12,0.00038082,5]
[341044501,1730301081503,-813.76,0.00038082,5]
[341044502,1730301081513,-500.0,0.00038082,5]
[341044503,1730301081522,-581.37,0.00038082,5]
[341044504,1730301081532,-500.0,0.00038082,5]
[341044505,1730301081541,-601.11,0.00038082,5]
[341044506,1730301081550,-500.0,0.00038082,5]
[341044507,1730301081559,-518.53822687,0.00038082,5]
[341044508,1730301081569,-500.0,0.00038082,5]
[341044509,1730301081578,-500.0,0.00038082,5]
[341044510,1730301081588,-3900.02,0.00038082,5]
[341044511,1730301081597,-500.0,0.00038082,5]
[341044512,1730301081607,-3956.8,0.00038082,5]
[341044513,1730301081616,-1033.49,0.00038082,5]
[341044514,1730301081626,-2561.17,0.00038082,5]
[341044515,1730301081635,-5020.91,0.00038082,5]
[341044516,1730301081644,-1504.38,0.00038082,5]
[341044517,1730301081653,-1084.27,0.000383,14]
[341044518,1730301081662,-1000.0,0.00038319,2]
[341044519,1730301081671,-150.5,0.00038326,30]
[341044520,1730301081681,-295.08,0.00038326,30]
[341044521,1730301081690,-150.5,0.00038336,30]
[341044522,1730301081699,-150.5,0.00038336,30]
[341044523,1730301081711,-150.5,0.00038346,30]
[341044524,1730301081720,-150.5,0.00038346,30]
[341044525,1730301081729,-542.0,0.00038355,5]
[341044526,1730301081739,-500.0,0.00038356,30]
[341044527,1730301081748,-500.0,0.00038356,5]
[341044528,1730301081758,-1139.26,0.00038356,2]
[341044529,1730301081768,-600.73,0.00038356,5]
[341044530,1730301081777,-879.74,0.00038356,5]
[341044531,1730301081787,-834.42,0.00038356,5]
[341044532,1730301081796,-500.0,0.00038356,5]
[341044533,1730301081806,-500.0,0.00038356,5]
[341044534,1730301081815,-246.46782966,0.00038356,5]
[341044535,1730301081825,-541.52,0.00038356,5]
[341044536,1730301081834,-646.69,0.00038356,5]
[341044537,1730301081843,-599.58,0.00038356,5]
[341044538,1730301081853,-739.01,0.00038356,5]
[341044539,1730301081862,-644.7,0.00038356,5]
[341044540,1730301081871,-1000.0,0.00038356,120]
[341044541,1730301081881,-610.76,0.00038356,5]
[341044542,1730301081891,-1213.36,0.00038356,5]
[341044543,1730301081900,-741.71,0.00038356,5]
[341044544,1730301081910,-791.34,0.00038356,5]
[341044545,1730301081920,-2165.19,0.00038356,5]
[341044546,1730301081930,-2507.94,0.00038356,5]
[341044547,1730301081941,-500.0,0.00038356,5]
[341044548,1730301081951,-556.27,0.00038356,5]
[341044549,1730301081963,-850.73,0.00038356,5]
[341044550,1730301081973,-649.88632428,0.00038356,5]
[341044551,1730301081982,-594.99,0.00038356,5]
[341044552,1730301081991,-638.53,0.00038356,5]
[341044553,1730301082001,-765.24,0.00038356,5]
[341044554,1730301082010,-872.19,0.00038356,5]
[341044555,1730301082019,-726.09,0.00038356,5]
[341044556,1730301082029,-1312.35,0.00038356,5]
[341044557,1730301082039,-1481.81,0.00038356,5]
[341044558,1730301082048,-662.44,0.00038356,5]
[341044559,1730301082058,-500.0,0.00038356,5]
[341044560,1730301082069,-646.17,0.00038356,5]
[341044561,1730301082080,-679.04,0.00038356,5]
[341044562,1730301082092,-925.77,0.00038356,5]
[341044563,1730301082101,-854.36,0.00038356,5]
[341044564,1730301082111,-524.7,0.00038356,5]
[341044565,1730301082121,-1022.86,0.00038356,5]
[341044566,1730301082130,-725.7,0.00038356,5]
[341044567,1730301082139,-500.0,0.00038356,5]
[341044568,1730301082149,-1018.14,0.00038356,5]
[341044569,1730301082159,-7103.18,0.00038356,120]
[341044570,1730301082168,-823.86,0.00038356,5]
[341044571,1730301082178,-1098.19,0.00038356,5]
[341044572,1730301082187,-574.74,0.00038356,5]